bitfinex-derivatives/quotes_ETHF0:USTF0_20250420
["timestamp","ask_amount","ask_price","bid_price","bid_amount"]
[1745149038127,25.73339974,1574.5,1574.4,4.62152653]
[1745149038333,25.73339974,1574.5,1574.4,0.00952653]
[1745149042035,27.84179482,1574.5,1574.4,0.00952653]
[1745149042234,27.84179482,1574.5,1574.3,1.6346]
[1745149042436,3.0828,1574.4,1574.3,1.6346]
[1745149043137,5.3108,1574.4,1574.3,1.6346]
[1745149043833,3.5391,1574.4,1574.3,1.6346]
[1745149045537,2.228,1574.4,1574.3,1.6346]
[1745149049044,6.43558172,1574.4,1574.3,1.6346]
[1745149052445,7.24570784,1574.4,1574.3,1.6346]
[1745149052942,11.74320784,1574.4,1574.2,4.62252653]
[1745149053145,1.6682,1574.3,1574.2,4.62252653]
[1745149054444,3.8962,1574.3,1574.2,4.62252653]
[1745149056548,11.0176987,1574.3,1574.2,4.62252653]
[1745149059650,13.12148956,1574.3,1574.2,4.62252653]
[1745149059849,13.12148956,1574.3,1574.2,6.28782653]
[1745149060146,11.45328956,1574.3,1574.2,6.28782653]
[1745149062354,13.12538956,1574.3,1574.2,6.28782653]
[1745149062951,3.9001,1574.3,1574.2,6.28782653]
[1745149063455,2.228,1574.3,1574.2,6.28782653]
[1745149065260,2.228,1574.3,1574.2,0.00952653]
[1745149065459,3.9144,1574.3,1574.1,4.606]
[1745149065644,1.6864,1574.2,1574.1,4.606]
[1745149065955,1.6864,1574.2,1573.9,4.606]
[1745149066158,3.2078,1574.0,1573.7,7.8138]
[1745149066361,1.6864,1573.9,1573.7,7.8138]
[1745149066553,1.2782,1573.8,1573.7,3.2078]
[1745149066855,2.5636,1573.8,1573.7,3.2078]
[1745149067353,4.7916,1573.8,1573.7,3.2078]
[1745149067752,7.9994,1573.8,1573.6,4.606]
[1745149067953,1.6864,1573.7,1573.6,4.606]
[1745149068153,3.9144,1573.7,1573.6,4.606]
[1745149068861,3.9144,1573.7,1573.5,1.6493]
[1745149069158,1.6896,1573.6,1573.5,6.2563]
[1745149069358,1.6896,1573.6,1573.5,4.607]
[1745149070150,3.9176,1573.6,1573.5,4.607]
[1745149070351,3.9176,1573.6,1573.4,8.46507875]
[1745149070552,6.2483,1573.5,1573.4,8.46507875]
[1745149071158,8.4763,1573.5,1573.4,8.46507875]
[1745149071859,19.3843,1573.5,1573.4,1.82820528]
[1745149072246,19.3843,1573.5,1573.3,12.69176962]
[1745149072456,2.9764,1573.4,1573.3,12.69176962]
[1745149072857,7.9764,1573.4,1573.3,8.59136962]
[1745149073159,10.2044,1573.4,1573.3,8.59136962]
[1745149073362,10.2044,1573.4,1572.9,1.7143]
[1745149073659,3.2078,1573.1,1572.9,1.7143]
[1745149074161,5.4358,1573.1,1572.9,1.7143]
[1745149076856,5.4358,1573.1,1572.8,1.3076]
[1745149077064,2.9784,1573.0,1572.8,1.3076]
[1745149077254,1.666,1572.9,1572.8,1.3076]
[1745149078259,3.894,1572.9,1572.8,1.3076]
[1745149079465,3.894,1572.9,1572.7,7.8158]
[1745149079659,3.894,1572.9,1572.8,1.6045]
[1745149080366,2.228,1572.9,1572.8,1.6045]
[1745149080764,5.4358,1572.9,1572.7,1.2308]
[1745149080959,1.7022,1572.8,1572.6,1.2795]
[1745149081258,3.9302,1572.8,1572.7,1.6226]
[1745149082174,3.9302,1572.8,1572.6,2.5492]
[1745149082365,1.7022,1572.7,1572.6,4.1718]
[1745149082561,2.228,1572.8,1572.6,4.1718]
[1745149082769,2.228,1572.8,1572.7,1.6226]
[1745149084277,2.228,1572.8,1572.7,9.8304]
[1745149085074,2.228,1572.8,1572.7,4.8304]
[1745149085272,0.00952653,1573.0,1572.7,4.8304]
[1745149085469,1.72042653,1573.0,1572.8,6.3544]
[1745149085770,1.72042653,1573.0,1572.9,1.7514]
[1745149086179,3.94842653,1573.0,1572.7,3.2078]
[1745149086378,3.94842653,1573.0,1572.8,1.7514]
[1745149086874,1.688,1572.9,1572.8,1.7514]
[1745149087075,3.916,1572.9,1572.8,1.7514]
[1745149091682,3.916,1572.9,1572.7,7.8108]
[1745149091883,1.7153,1572.8,1572.7,6.2167]
[1745149092182,2.228,1572.9,1572.7,6.2167]
[1745149092382,3.9433,1572.9,1572.8,1.6137]
[1745149098687,2.228,1572.9,1572.8,1.6137]
[1745149105485,5.4358,1572.9,1572.6,2.5492]
[1745149105685,4.3411,1572.8,1572.6,4.2743]
[1745149105887,4.3411,1572.8,1572.7,1.7251]
[1745149106185,6.5691,1572.8,1572.7,1.7251]
[1745149107491,6.5691,1572.8,1572.5,7.8108]
[1745149107994,1.6096,1572.7,1572.6,3.1126]
[1745149108191,3.8376,1572.7,1572.6,3.1126]
[1745149108381,2.228,1572.7,1572.6,4.4419]
[1745149112599,2.228,1572.7,1572.6,9.4419]
[1745149112792,4.21922373,1573.0,1572.6,9.4419]
[1745149112992,4.21922373,1573.0,1572.9,3.2078]
[1745149113198,4.21922373,1573.0,1572.9,12.8118]
[1745149114299,0.00952653,1573.0,1572.9,12.8118]
[1745149115296,8.41516344,1573.1,1572.9,12.8118]
[1745149115498,8.41516344,1573.1,1572.9,109.7638]
[1745149115798,0.71916344,1573.1,1573.0,3.0603]
[1745149116299,0.71916344,1573.1,1573.0,8.0603]
[1745149118201,7.24541991,1573.5,1573.0,8.0603]
[1745149118499,7.24541991,1573.5,1573.2,3.2078]
[1745149118701,7.24541991,1573.5,1573.3,6.2109]
[1745149119205,9.47341991,1573.5,1573.3,6.2109]
[1745149119400,1.7469,1573.4,1573.3,6.2109]
[1745149120103,3.9749,1573.4,1573.3,6.2109]
[1745149121503,2.228,1573.4,1573.3,6.2109]
[1745149121704,2.228,1573.4,1573.3,4.596]
[1745149121705,9.37169049,1573.4,1573.3,4.596]
[1745149121896,9.37169049,1573.4,1573.3,7.5887]
[1745149123007,9.37169049,1573.4,1573.3,6.2835]
[1745149124704,17.57949049,1573.4,1573.0,4.596]
[1745149124903,4.3892,1573.3,1573.0,4.596]
[1745149125101,4.9055,1573.2,1573.0,4.596]
[1745149125299,1.6977,1573.1,1573.0,4.596]
[1745149126106,3.9257,1573.1,1573.0,4.596]
[1745149127811,8.9257,1573.1,1573.0,4.596]
[1745149128000,3.9257,1573.1,1573.0,4.596]
[1745149128196,2.228,1573.1,1573.0,4.596]
[1745149128601,6.4546236,1573.1,1573.0,6.3718]
[1745149130908,6.4546236,1573.1,1573.0,14.5796]
[1745149131313,4.2266236,1573.1,1573.0,14.5796]
[1745149132211,4.2266236,1573.1,1573.0,16.8076]
[1745149132914,9.2266236,1573.1,1572.2,3.2078]
[1745149133108,4.2956,1573.0,1572.8,3.2078]
[1745149133614,1.6521,1572.9,1572.8,3.2078]
[1745149133807,1.6521,1572.9,1572.8,4.8983]
[1745149134314,3.8801,1572.9,1572.8,6.1963]
[1745149135711,3.8801,1572.9,1572.8,3.2078]
[1745149135914,3.8801,1572.9,1572.7,4.596]
[1745149136098,3.8801,1572.9,1572.8,3.2078]
[1745149138405,3.8801,1572.9,1572.8,4.9844]
[1745149140711,2.228,1572.9,1572.8,4.9844]
[1745149140913,2.228,1572.9,1572.8,6.2809]
[1745149141308,2.228,1572.9,1572.8,7.6296]
[1745149141509,2.228,1572.9,1572.8,12.6296]
[1745149142111,4.2266236,1573.0,1572.8,12.6296]
[1745149142306,4.2266236,1573.0,1572.9,1.6744]
[1745149142706,4.2266236,1573.0,1572.9,6.6744]
[1745149143520,4.2266236,1573.0,1572.9,1.6744]
[1745149145321,8.1312236,1573.0,1572.9,1.6744]
[1745149145614,8.1312236,1573.0,1572.8,3.2078]
[1745149145813,2.9535,1572.9,1572.8,3.2078]
[1745149146208,5.1815,1572.9,1572.8,3.2078]
[1745149149513,5.1815,1572.9,1572.7,6.2997]
[1745149149717,1.7585,1572.8,1572.7,6.2997]
[1745149150116,3.9865,1572.8,1572.7,6.2997]
[1745149150918,5.2526,1572.8,1572.7,6.2997]
[1745149151415,5.2526,1572.8,1572.7,4.596]
[1745149151611,10.2526,1572.8,1572.7,4.596]
[1745149151806,5.2526,1572.8,1572.7,4.596]
[1745149152415,5.2526,1572.8,1572.7,7.8038]
[1745149152917,5.2526,1572.8,1572.7,9.4335]
[1745149153120,5.5035236,1572.9,1572.7,9.4335]
[1745149153316,5.5035236,1572.9,1572.8,1.6297]
[1745149153618,4.2266236,1572.9,1572.8,1.6297]
[1745149154118,6.4546236,1572.9,1572.8,1.6297]
[1745149154919,8.1938236,1572.9,1572.8,1.6297]
[1745149156221,6.4546236,1572.9,1572.8,1.6297]
[1745149157915,8.2133236,1572.9,1572.8,1.6297]
[1745149160026,8.2133236,1572.9,1572.7,7.8038]
[1745149160220,2.9014,1572.8,1572.7,7.8038]
[1745149161230,5.1294,1572.8,1572.7,4.596]
[1745149167036,16.4999153,1572.8,1572.5,3.2078]
[1745149167237,3.1573,1572.7,1572.5,3.2078]
[1745149167427,1.7757,1572.6,1572.5,4.9212]
[1745149168241,4.0037,1572.6,1572.5,4.9212]
[1745149169146,4.0037,1572.6,1572.5,1.7134]
[1745149169334,4.0037,1572.6,1572.5,3.2078]
[1745149170639,4.0037,1572.6,1572.4,4.591]
[1745149170943,3.0909,1572.5,1572.4,4.591]
[1745149171143,3.0909,1572.5,1572.4,6.3414]
[1745149171144,5.3189,1572.5,1572.4,6.3414]
[1745149173141,5.3189,1572.5,1572.4,4.591]
[1745149175745,9.5455236,1572.5,1572.4,4.591]
[1745149176339,12.7533236,1572.5,1572.4,4.591]
[1745149178348,17.7533236,1572.5,1572.0,4.586]
[1745149178647,2.9692,1572.4,1572.0,4.586]
[1745149178947,1.6748,1572.3,1572.0,4.586]
[1745149179147,1.2686,1572.2,1572.0,4.586]
[1745149179349,1.6748,1572.1,1572.0,4.586]
[1745149179650,2.228,1572.3,1572.0,6.2687]
[1745149179854,5.1714,1572.3,1572.1,3.0619]
[1745149180447,5.1714,1572.3,1572.2,1.6827]
[1745149182049,3.9028,1572.3,1572.2,1.6827]
[1745149182352,1.6748,1572.3,1572.2,1.6827]
[1745149183353,6.72001086,1572.3,1572.2,1.6827]
[1745149184752,5.04521086,1572.3,1572.2,1.6827]
[1745149187561,5.04521086,1572.3,1572.1,3.2078]
[1745149187752,5.04521086,1572.3,1572.1,3.1419]
[1745149187952,2.9881,1572.3,1572.2,1.7472]
[1745149188152,5.2161,1572.3,1572.2,1.7472]
[1745149188354,3.6107,1572.3,1572.2,1.7472]
[1745149190660,2.228,1572.3,1572.2,1.7472]
[1745149192964,3.9258,1572.3,1572.2,1.7472]
[1745149194563,2.228,1572.3,1572.2,1.7472]
[1745149195863,6.46203041,1572.3,1572.2,1.7472]
[1745149196164,4.23403041,1572.3,1572.2,1.7472]
[1745149197258,6.46203041,1572.3,1572.2,1.7472]
[1745149198162,4.23403041,1572.3,1572.2,1.7472]
[1745149199062,5.97223041,1572.4,1572.2,1.7472]
[1745149199263,5.97223041,1572.4,1572.3,4.587]
[1745149199764,4.23403041,1572.4,1572.3,7.7948]
[1745149199966,4.23403041,1572.4,1572.3,9.1575]
[1745149200153,4.23403041,1572.4,1572.3,14.1575]
[1745149201653,4.23403041,1572.4,1572.3,15.9023]
[1745149205061,4.23403041,1572.4,1572.3,10.9023]
[1745149205463,1.7807,1572.5,1572.3,9.5396]
[1745149205755,1.7807,1572.4,1572.3,9.5396]
[1745149206267,4.0087,1572.4,1572.3,9.5396]
[1745149206869,4.0087,1572.4,1572.3,7.7948]
[1745149207063,4.0087,1572.4,1572.3,4.587]
[1745149209770,8.24273041,1572.4,1572.3,4.587]
[1745149210171,9.52243041,1572.4,1572.3,4.587]
[1745149211971,9.52243041,1572.4,1572.3,1e-08]
[1745149213367,14.56879927,1572.4,1572.3,1e-08]
[1745149214367,14.56879927,1572.4,1572.1,4.581]
[1745149214573,3.2078,1572.2,1571.8,4.581]
[1745149214782,3.2078,1572.0,1571.8,4.581]
[1745149214973,2.9539,1571.9,1571.8,4.581]
[1745149215174,5.1819,1571.9,1571.8,4.581]
[1745149216064,2.9539,1571.9,1571.8,4.581]
[1745149217172,5.1819,1571.9,1571.8,4.581]
[1745149218076,2.9539,1571.9,1571.8,4.581]
[1745149218381,14.34329633,1571.9,1571.8,4.581]
[1745149220065,16.57129633,1571.9,1571.8,4.581]
[1745149221269,16.57129633,1571.9,1571.6,4.582]
[1745149221473,6.2884,1571.8,1571.6,4.582]
[1745149221677,1.7189,1571.7,1571.6,4.582]
[1745149222181,1.7189,1571.7,1571.5,4.582]
[1745149222380,1.3848,1571.6,1571.5,4.57271793]
[1745149224471,1.3848,1571.6,1571.5,6.27801793]
[1745149225680,1.7189,1571.7,1571.5,6.27801793]
[1745149225882,1.7189,1571.7,1571.6,3.006]
[1745149226070,1.70961793,1571.7,1571.6,3.006]
[1745149226476,5.87282653,1571.8,1571.6,3.006]
[1745149226676,5.87282653,1571.8,1571.7,1.7053]
[1745149228082,10.10411176,1571.8,1571.7,1.7053]
[1745149229281,11.84981176,1571.8,1571.7,1.7053]
[1745149229887,11.84981176,1571.8,1571.6,1.3007]
[1745149230189,1.7457,1571.7,1571.6,1.6592]
[1745149230988,1.7457,1571.7,1571.5,5.94531793]
[1745149231188,1.7457,1571.7,1571.5,5.93603586]
[1745149231378,1.7457,1571.7,1571.5,4.56343586]
[1745149232186,3.9737,1571.7,1571.5,4.56343586]
[1745149232986,4.852,1571.6,1570.9,7.7908]
[1745149233190,3.2078,1571.3,1571.0,1.722]
[1745149233375,4.1542,1571.2,1571.0,1.722]
[1745149233581,1.6237,1571.1,1570.9,4.583]
[1745149233776,1.6237,1571.1,1570.9,6.246]
[1745149233981,4.8315,1571.1,1570.6,11.68013183]
[1745149234189,3.2078,1570.9,1570.7,4.583]
[1745149234378,3.2078,1570.9,1570.7,6.246]
[1745149234787,1.6237,1570.8,1570.7,6.246]
[1745149234984,1.6237,1570.8,1570.6,11.68013183]
[1745149235185,2.8892,1570.8,1570.6,8.47233183]
[1745149235390,3.2078,1570.7,1570.6,8.47233183]
[1745149235592,4.8315,1570.7,1570.6,8.47233183]
[1745149236687,10.18028378,1570.7,1570.6,7.49285835]
[1745149236990,10.18028378,1570.7,1570.5,12.70185792]
[1745149237291,1.645,1570.6,1570.3,6.2193]
[1745149237491,1.645,1570.6,1570.4,1.6353]
[1745149239188,0.00952653,1571.0,1570.4,9.8431]
[1745149239497,1.66022653,1571.0,1570.5,2.6139]
[1745149239696,4.86802653,1571.0,1570.6,4.579]
[1745149239897,4.86802653,1571.0,1570.6,6.2593]
[1745149240093,4.86802653,1571.0,1570.7,1.6803]
[1745149240691,3.21732653,1571.0,1570.7,1.6803]
[1745149240891,0.00952653,1571.0,1570.8,3.2078]
[1745149241091,0.00952653,1571.0,1570.9,2.9867]
[1745149241395,0.00952653,1571.0,1570.9,8.8732]
[1745149241595,0.00952653,1571.0,1570.9,13.8732]
[1745149242188,0.00952653,1571.0,1570.9,16.1012]
[1745149242389,4.24081176,1571.0,1570.9,16.1012]
[1745149243485,4.24081176,1571.0,1570.9,11.1012]
[1745149244196,4.24081176,1571.0,1570.9,8.8732]
[1745149244596,4.24081176,1571.0,1570.9,4.579]
[1745149245087,4.24081176,1571.0,1570.9,7.6197]
[1745149246901,1.62022653,1571.0,1570.9,7.6197]
[1745149247200,1.62022653,1571.0,1570.9,6.3509]
[1745149247404,1.62022653,1571.0,1570.9,4.579]
[1745149249206,4.82802653,1571.0,1570.7,6.3368]
[1745149249398,3.2078,1570.8,1570.7,6.3368]
[1745149249590,3.2078,1570.8,1570.7,4.579]
[1745149249996,6.2281,1570.8,1570.7,4.579]
[1745149252007,6.2281,1570.8,1570.6,1.744]
[1745149252401,1.7661,1570.7,1570.6,1.744]
[1745149255508,1.7661,1570.7,1570.5,5.8694]
[1745149255904,4.5422,1570.8,1570.5,5.8694]
[1745149256101,6.3028,1570.8,1570.6,1.639]
[1745149257300,1.3275,1570.9,1570.6,4.8468]
[1745149257704,1.3275,1570.9,1570.7,1.6808]
[1745149257905,2.9681,1570.9,1570.7,1.6808]
[1745149259318,3.21732653,1571.0,1570.7,1.6808]
[1745149259618,0.00952653,1571.0,1570.9,3.2078]
[1745149259812,0.00952653,1571.0,1570.9,7.4711]
[1745149260321,0.00952653,1571.0,1570.9,12.4711]
[1745149260819,0.00952653,1571.0,1570.9,7.4711]
[1745149265121,0.00952653,1571.0,1570.9,9.6991]
[1745149266716,0.00952653,1571.0,1570.9,7.1166]
[1745149267124,0.00952653,1571.0,1570.9,9.7537]
[1745149267328,0.00952653,1571.0,1570.9,7.5257]
[1745149268223,0.00952653,1571.0,1570.9,9.7537]
[1745149270226,0.00952653,1571.0,1570.9,7.5257]
[1745149272227,0.00952653,1571.0,1570.9,9.7537]
[1745149273232,0.00952653,1571.0,1570.9,7.5257]
[1745149275227,0.00952653,1571.0,1570.9,9.7537]
[1745149278134,0.00952653,1571.0,1570.9,7.5257]
[1745149278438,0.00952653,1571.0,1570.9,6.2121]
[1745149279536,1.40152653,1571.0,1570.9,6.2121]
[1745149281736,0.00952653,1571.0,1570.9,6.2121]
[1745149282327,0.00952653,1571.0,1570.9,8.4401]
[1745149292740,1.63702653,1571.0,1570.9,8.4401]
[1745149293141,1.63702653,1571.0,1570.9,2.228]
[1745149293843,1.63702653,1571.0,1570.9,3.9865]
[1745149294141,0.00952653,1571.0,1570.9,3.9865]
[1745149294341,0.00952653,1571.0,1570.9,7.1943]
[1745149295439,0.00952653,1571.0,1570.9,12.1943]
[1745149295635,10.57821307,1571.1,1570.9,12.1943]
[1745149295834,2.7837396,1571.1,1571.0,4.2951]
[1745149296340,2.7837396,1571.1,1571.0,9.2951]
[1745149297139,2.7837396,1571.1,1571.0,11.5231]
[1745149297537,2.7837396,1571.1,1571.0,6.5231]
[1745149298740,2.7837396,1571.1,1571.0,5.1928]
[1745149299140,5.7910396,1571.1,1571.0,3.9297]
[1745149299341,3.0073,1571.1,1571.0,3.9297]
[1745149300045,3.0073,1571.1,1571.0,2.228]
[1745149300250,3.0073,1571.1,1570.8,10.815]
[1745149300542,1.7514,1571.0,1570.8,10.815]
[1745149301143,1.7514,1571.0,1570.9,1.7817]
[1745149302237,1.7514,1571.0,1570.9,4.0097]
[1745149303238,1.7514,1571.0,1570.9,1.7817]
[1745149305245,1.7514,1571.0,1570.9,4.0097]
[1745149306248,1.7514,1571.0,1570.9,1.7817]
[1745149306640,1.3977,1571.1,1570.9,1.7817]
[1745149306944,8.46921601,1571.2,1571.0,3.2078]
[1745149307143,8.46921601,1571.2,1571.1,7.5603]
[1745149308435,11.67701601,1571.2,1571.1,6.2114]
[1745149308637,16.00401601,1571.2,1571.1,6.2114]
[1745149310050,12.79621601,1571.2,1571.1,6.2114]
[1745149310250,16.00401601,1571.2,1571.1,6.2114]
[1745149310451,16.00401601,1571.2,1571.1,4.568]
[1745149313152,8.34658591,1571.2,1571.1,4.568]
[1745149315651,5.13878591,1571.2,1571.1,6.301]
[1745149315856,3.45038591,1571.2,1571.1,7.7023]
[1745149316054,11.91960192,1571.2,1571.1,7.7023]
[1745149316247,9.28100192,1571.2,1571.1,14.0076]
[1745149317257,9.28100192,1571.2,1571.1,9.0076]
[1745149320261,3.1055,1571.3,1571.1,9.0076]
[1745149320760,3.1055,1571.3,1571.1,7.7023]
[1745149320963,1.7169,1571.2,1571.1,7.7023]
[1745149321964,1.7169,1571.2,1571.1,4.568]
[1745149323054,1.3886,1571.3,1571.1,4.568]
[1745149323265,1.3719,1571.4,1571.2,2.993]
[1745149323458,4.3637,1571.4,1571.3,1.6162]
[1745149327976,5.17535016,1571.4,1571.3,1.6162]
[1745149329682,5.17535016,1571.4,1571.2,1.3768]
[1745149329981,1.6958,1571.3,1571.2,3.06052653]
[1745149330881,5.19395016,1571.4,1571.2,3.06052653]
[1745149331072,5.19395016,1571.4,1571.3,1.7437]
[1745149332584,2.16755016,1571.4,1571.3,1.7437]
[1745149334885,0.81165016,1571.4,1571.3,1.7437]
[1745149342390,0.81165016,1571.4,1571.3,6.7437]
[1745149343089,8.46921601,1571.6,1571.3,12.5957]
[1745149343293,8.46921601,1571.6,1571.5,3.2078]
[1745149343685,8.46921601,1571.6,1571.5,12.6037]
[1745149343992,8.46921601,1571.6,1571.5,13.10655515]
[1745149344293,8.46921601,1571.6,1571.5,15.33455515]
[1745149344599,7.14691601,1571.6,1571.5,15.33455515]
[1745149344993,7.14691601,1571.6,1571.5,9.8317]
[1745149345192,7.14691601,1571.6,1571.5,7.6037]
[1745149345797,2.9812,1571.8,1571.5,7.6037]
[1745149346098,2.97191793,1571.8,1571.6,1.6566]
[1745149346299,1.2734,1571.7,1571.5,4.5733]
[1745149346500,1.2734,1571.7,1571.6,4.55171793]
[1745149346796,6.26411793,1571.7,1571.6,4.55171793]
[1745149347199,8.49211793,1571.7,1571.6,4.55171793]
[1745149347494,8.49211793,1571.7,1571.5,3.2078]
[1745149347695,8.49211793,1571.7,1571.5,3.19851793]
[1745149347999,3.2078,1571.6,1571.4,4.56]
[1745149348188,5.4358,1571.6,1571.4,4.56]
[1745149348388,1.2929,1571.5,1571.4,4.56]
[1745149349197,3.0231,1571.5,1571.4,4.56]
[1745149354397,3.2078,1571.6,1571.4,4.56]
[1745149354698,3.2078,1571.6,1571.5,1.617]
[1745149354898,4.926,1571.6,1571.5,1.617]
[1745149355498,10.54197539,1571.8,1571.5,1.617]
[1745149355699,10.53269332,1571.8,1571.5,1.617]
[1745149356102,12.27359332,1571.8,1571.5,1.617]
[1745149356396,1.7409,1571.7,1571.5,1.617]
[1745149356597,1.7409,1571.7,1571.5,1.60771793]
[1745149361595,1.3569,1571.6,1571.5,1.60771793]
[1745149365402,2.982,1571.6,1571.5,1.60771793]
[1745149368910,1.3569,1571.6,1571.5,1.60771793]
[1745149369299,3.0566,1571.7,1571.5,1.60771793]
[1745149370810,4.4337,1571.7,1571.5,1.60771793]
[1745149371802,6.32780485,1571.8,1571.5,1.60771793]
[1745149372002,6.31852278,1571.8,1571.5,1.60771793]
[1745149372407,8.04992278,1571.8,1571.5,1.60771793]
[1745149372809,1.7314,1571.7,1571.5,1.60771793]
[1745149373012,1.7314,1571.7,1571.5,1.59843586]
[1745149374409,1.2999,1571.6,1571.5,1.59843586]
[1745149376810,1.7314,1571.7,1571.5,1.59843586]
[1745149380308,1.7314,1571.7,1571.4,4.56]
[1745149380515,4.5986,1571.6,1571.4,4.56]
[1745149380714,1.694,1571.5,1571.4,4.56]
[1745149380912,2.9851,1571.5,1571.4,4.56]
[1745149381215,10.2131,1571.5,1571.4,4.56]
[1745149383015,5.2131,1571.5,1571.4,4.56]
[1745149385619,6.02474201,1571.5,1571.4,4.56]
[1745149386813,11.02474201,1571.5,1571.2,0.00952653]
[1745149387011,3.2078,1571.3,1570.9,4.554]
[1745149387223,3.2078,1571.1,1570.9,4.554]
[1745149387420,1.7033,1571.0,1570.9,4.554]
[1745149387920,2.0531182,1571.0,1570.9,4.554]
[1745149388218,2.05283639,1571.0,1570.9,4.554]
[1745149388417,1.7033,1571.0,1570.9,4.554]
[1745149393623,11.14850805,1571.2,1570.9,4.554]
[1745149393921,12.83300805,1571.2,1571.0,3.0581]
[1745149394114,4.3898,1571.2,1571.1,1.7443]
[1745149395922,3.0657,1571.2,1571.1,1.7443]
[1745149396124,1.3812,1571.2,1571.1,1.7443]
[1745149396519,13.42810805,1571.3,1571.1,1.7443]
[1745149396718,13.42810805,1571.3,1571.2,4.549]
[1745149397324,4.9849,1571.3,1571.2,4.549]
[1745149401129,7.2129,1571.3,1571.2,4.549]
[1745149401729,12.2129,1571.3,1571.0,4.549]
[1745149401922,3.2078,1571.1,1571.0,4.549]
[1745149402317,4.5451,1571.1,1571.0,4.549]
[1745149402929,1.6086,1571.2,1571.0,4.549]
[1745149403226,1.6086,1571.2,1571.1,3.0005]
[1745149404130,1.6086,1571.2,1571.0,4.549]
[1745149404525,1.3397,1571.1,1571.0,4.549]
[1745149405830,1.3397,1571.1,1571.0,6.2428]
[1745149408424,3.0439,1571.1,1571.0,6.2428]
[1745149409725,1.7042,1571.1,1571.0,6.2428]
[1745149414033,3.2078,1571.2,1571.0,6.2428]
[1745149414236,3.2078,1571.2,1571.1,1.6916]
[1745149414534,4.3326,1571.3,1571.1,1.6916]
[1745149414926,1.3373,1571.3,1571.1,3.0335]
[1745149415124,1.3373,1571.3,1571.2,3.0708]
[1745149416934,1.68767416,1571.3,1571.2,3.0708]
[1745149417335,1.3373,1571.3,1571.2,3.0708]
[1745149417638,5.54853262,1571.3,1571.2,3.0708]
[1745149419338,5.89892439,1571.3,1571.2,3.0708]
[1745149419537,5.89893627,1571.3,1571.2,3.0708]
[1745149421438,7.58323627,1571.3,1571.2,3.0708]
[1745149421636,7.58323627,1571.3,1571.2,1.6916]
[1745149422137,8.39499621,1571.3,1571.0,4.549]
[1745149422340,0.35040365,1571.2,1571.1,1.7066]
[1745149423135,3.48730365,1571.2,1571.1,1.7066]
[1745149423738,3.48730365,1571.2,1571.0,5.902]
[1745149423739,3.48730365,1571.2,1571.0,4.549]
[1745149423933,0.35040365,1571.1,1571.0,4.549]
[1745149424132,2.11900365,1571.1,1571.0,4.549]
[1745149424634,0.35040365,1571.1,1571.0,4.549]
[1745149424837,0.35040365,1571.1,1571.0,7.4546]
[1745149425542,1.16216359,1571.1,1571.0,7.4546]
[1745149426140,1.16351816,1571.1,1571.0,9.6826]
[1745149427940,1.16344438,1571.1,1571.0,9.6826]
[1745149429742,1.16343518,1571.1,1571.0,9.6826]
[1745149431644,1.16349481,1571.1,1571.0,9.6826]
[1745149433450,1.1635134,1571.1,1571.0,9.6826]
[1745149433638,1.1635136,1571.1,1571.0,9.6826]
[1745149434448,0.81175994,1571.1,1571.0,9.6826]
[1745149434748,0.81175994,1571.1,1571.0,12.8904]
[1745149434958,0.81175994,1571.1,1571.0,17.8904]
[1745149437448,0.81175994,1571.1,1571.0,12.8904]
[1745149439255,4.24189211,1571.1,1571.0,12.8904]
[1745149440450,4.24189211,1571.1,1571.0,11.5889]
[1745149440651,4.24189211,1571.1,1571.0,8.3811]
[1745149440856,7.34269211,1571.1,1571.0,8.3811]
[1745149442159,7.34269211,1571.1,1571.0,6.1531]
[1745149443053,10.27539811,1571.1,1571.0,6.1531]
[1745149447257,10.27539811,1571.1,1571.0,4.549]
[1745149450165,10.27539811,1571.1,1571.0,6.777]
[1745149451563,12.35576799,1571.1,1571.0,6.777]
[1745149455559,9.25496799,1571.1,1571.0,6.777]
[1745149455768,9.25496799,1571.1,1571.0,16.2972]
[1745149458169,9.25496799,1571.1,1571.0,11.2972]
[1745149460768,8.14732617,1571.3,1571.0,11.2972]
[1745149460972,8.14732617,1571.3,1571.1,1.6502]
[1745149461171,8.14732617,1571.3,1571.1,3.0581]
[1745149462970,8.14732617,1571.3,1571.1,6.2659]
[1745149463572,8.14732617,1571.3,1571.1,3.0581]
[1745149463870,8.14732617,1571.3,1571.1,6.2659]
[1745149464059,5.05122617,1571.3,1571.1,6.2659]
[1745149464261,6.35919935,1571.3,1571.2,1.7714]
[1745149465169,6.35919935,1571.3,1571.2,3.9994]
[1745149467471,4.23629286,1571.3,1571.2,3.9994]
[1745149470480,4.23629286,1571.3,1571.2,2.228]
[1745149470671,6.00069286,1571.3,1571.2,2.228]
[1745149472170,6.00069286,1571.3,1571.0,6.198]
[1745149472375,4.2454,1571.2,1571.0,6.198]
[1745149472577,1.6135,1571.1,1571.0,6.198]
[1745149473179,1.6135,1571.1,1571.0,8.426]
[1745149474576,2.6319,1571.2,1571.0,8.426]
[1745149474766,1.2841,1571.2,1571.1,1.7096]
[1745149474965,1.2841,1571.2,1571.1,4.4533]
[1745149477479,5.93909286,1571.3,1571.1,4.4533]
[1745149477680,4.23629286,1571.3,1571.2,1.7621]
[1745149478079,4.23629286,1571.3,1571.2,3.9901]
[1745149478475,5.89829286,1571.3,1571.2,3.9901]
[1745149480882,1.662,1571.3,1571.2,3.9901]
[1745149481783,13.28539221,1571.4,1571.2,3.9901]
[1745149481985,13.28539221,1571.4,1571.3,6.1882]
[1745149483682,11.96859221,1571.4,1571.3,6.1882]
[1745149483889,11.96859221,1571.4,1571.3,9.396]